Cogmind - Beta 17 @@@ ROGUE MODE // 2026.07.03 @ 03:25:49 Player: Duduxx Result: Destroyed by Y-54 Guardian with Flak Gun Performance ------------- Evolutions (4) 2000 Regions Visited (11) 2200 Robots Destroyed (120) 600 Value Destroyed (5811) 5811 Prototype IDs (0) 0 Alien Tech Used (0) 0 Bonus (3799) 3799 TOTAL SCORE: 14410 Bonus ------- High Alert Combat Kills 316 Follower Combat Kills 183 Entered Garrisons 800 Used RIF Installer 2500 Cogmind --------- Core Integrity 0/850 Matter 297/300 Energy 55/100 System Corruption 4% Temperature Cool (12) Movement Core (50) Location -6/Garrison Parts ------- > --- POWER (2) -------- (None) > --- PROPULSION (4) --- (None) > --- UTILITY (6) ------ Coolant Injector Relay Coupler [NC] (31) Relay Coupler [Swarmer] (31) > --- WEAPON (3) ------- (None) > --- INVENTORY (5) ---- Improved Shield Generator Relay Coupler [Swarmer] (27) Relay Coupler [Specialist] (20) Heavy Laser Remote Datajack Peak State ------------ > --- POWER ------------ Improved Deuterium Engine Light Angular Momentum Engine > --- PROPULSION ------- Armored Huge Wheel Armored Huge Wheel > --- UTILITY ---------- Advanced Heat Sink High-capacity Storage Unit Relay Coupler [Swarmer] Relay Coupler [Grunt] Relay Coupler [Brawler] Relay Coupler [Sentry] > --- WEAPON ----------- PD Laser > --- INVENTORY -------- Light Nuclear Core Improved Deuterium Engine Armored Leg Coolant Injector Improved Shield Generator Relay Coupler [NC] Relay Coupler [Swarmer] Relay Coupler [Specialist] Relay Coupler [Heavy] Particle Gun Gatling Laser Gatling Laser Flak Gun Proton Missile Launcher Proton Missile Launcher Remote Datajack Axe Blade Saw [Rating: 71] Favorites ----------- Power Light Nuclear Core Engine Improved Ion Engine Power Core Light Nuclear Core Propulsion Armored Huge Wheel Treads Light Treads Leg Aluminum Leg Wheel Armored Huge Wheel Utility High-capacity Storage Unit Device Improved Cooling System Storage High-capacity Storage Unit Processor Improved Terrain Scan Processor Hackware Relay Coupler [Grunt] Protection Improved Light Armor Plating Weapon Particle Gun Energy Gun Particle Gun Energy Cannon Heavy Particle Cannon Ballistic Gun Light Assault Rifle Ballistic Cannon Advanced Assault Cannon Launcher Grenade Launcher Special Weapon Remote Datajack Slashing Weapon Axe Build | -11 -10 -9 -8 -8 -8 -7 -7 -7 -7 -6 -6 ------- Run | Yrd Mat Mat Mat Gar Mat Fac Gar Fac Gar Fac Gar Slots Evolved 8 | . . 2 2 . . 2 . . . 2 . Power 1 | . . . 1 . . . . . . . . Propulsion 2 | . . . 1 . . 1 . . . . . Utility 4 | . . 1 . . . 1 . . . 2 . Weapon 1 | . . 1 . . . . . . . . . Parts Attached 130 | 8 . 7 28 21 3 5 8 1 31 2 16 Power 27 | 1 . 1 5 5 1 1 2 . 7 . 4 Engine 14 | 1 . 1 3 1 . . 1 . 4 . 3 Core 13 | . . . 2 4 1 1 1 . 3 . 1 Reactor . | . . . . . . . . . . . . Propulsion 29 | 2 . 1 7 5 1 1 1 . 9 . 2 Treads 5 | 2 . 1 1 1 . . . . . . . Leg 9 | . . . . 1 . . . . 6 . 2 Wheel 15 | . . . 6 3 1 1 1 . 3 . . Hover . | . . . . . . . . . . . . Flight . | . . . . . . . . . . . . Utility 38 | 2 . 3 8 4 1 1 3 1 7 2 6 Device 15 | 1 . 1 4 1 1 . 1 1 3 . 2 Storage 5 | 1 . 1 . 1 . . . . 2 . . Processor 2 | . . 1 1 . . . . . . . . Hackware 8 | . . . . . . 1 1 . 1 2 3 Protection 8 | . . . 3 2 . . 1 . 1 . 1 Artifact . | . . . . . . . . . . . . Weapon 36 | 3 . 2 8 7 . 2 2 . 8 . 4 Energy Gun 23 | 2 . 2 5 4 . . 2 . 5 . 3 Energy Cannon 2 | . . . 1 . . 1 . . . . . Ballistic Gun 2 | 1 . . . . . . . . 1 . . Ballistic Cannon 1 | . . . . 1 . . . . . . . Launcher 4 | . . . 1 2 . . . . 1 . . Special Weapon 2 | . . . . . . 1 . . 1 . . Impact Weapon . | . . . . . . . . . . . . Slashing Weapon 2 | . . . 1 . . . . . . . 1 Piercing Weapon . | . . . . . . . . . . . . Special Melee Weapon . | . . . . . . . . . . . . Unidentified Prototypes . | . . . . . . . . . . . . Parts Lost 78 | . . 1 18 16 . . 1 . 20 . 22 Power 19 | . . . 4 3 . . . . 7 . 5 Propulsion 21 | . . . 6 6 . . 1 . 4 . 4 Utility 16 | . . . 3 2 . . . . 4 . 7 Weapon 22 | . . 1 5 5 . . . . 5 . 6 Highest Loss Streak 14 | . . 1 8 5 . . 1 . 6 . 14 To Critical Strikes . | . . . . . . . . . . . . Average Backups 13 | 1 6 8 8 11 18 19 19 20 14 13 14 Power 2 | . 1 1 1 2 3 3 3 4 2 2 1 Propulsion 1 | 1 2 2 1 1 . 1 1 1 . . . Utility 5 | . . . 3 4 6 7 7 8 6 6 5 Weapon 4 | . 3 3 2 3 8 7 6 6 4 4 5 Tool/Special . | . . . . . . . . . . . . Unused Backups 13 | . . . . . 1 . 5 . 1 . 6 Power 1 | . . . . . . . 1 . . . . Propulsion . | . . . . . . . . . . . . Utility 10 | . . . . . 1 . 4 . 1 . 4 Weapon 2 | . . . . . . . . . . . 2 Tool/Special . | . . . . . . . . . . . . Average Slot Usage (%) 89 | . 100 99 90 90 89 91 91 91 89 84 76 Engine 7 | . 14 11 9 9 1 . 3 7 3 13 11 Core 7 | . . . 6 8 15 15 11 7 10 . . Treads 4 | . 28 22 6 4 . . . . . . . Leg 3 | . . . . . 6 . . . 14 . . Wheel 13 | . . . 18 14 10 22 23 23 7 13 11 Device 9 | . 14 21 8 9 9 7 6 6 8 6 6 Storage 8 | . 14 11 9 9 9 7 7 7 7 6 6 Hackware 5 | . . . . . . 6 7 7 4 18 20 Protection 6 | . . . 7 9 9 7 6 7 6 6 2 Energy Gun 16 | . 14 21 14 20 17 11 10 15 16 20 12 Energy Cannon 2 | . . . 4 2 . 2 7 7 1 . . Ballistic Gun 1 | . 14 11 2 . . . . . . . . Peak Build Rating 71 | 9 9 15 20 38 44 45 48 47 51 54 71 Average Rating 34 | 5 9 13 16 24 40 43 45 46 40 53 54 On Entrance 30 | . 9 9 15 19 38 41 45 46 47 47 54 Avg Prop Armor Cover (%) 8 | . . . . 9 6 . . . . . . Naked Turns . | . . . . . . . . . . . . Heaviest Build 80 | 12 12 34 47 69 69 73 76 76 80 72 74 Greatest Support 65 | 40 40 43 65 38 44 60 60 56 56 56 56 Greatest Overweight (x) 22 | . . . 2 4 2 1 1 1 22 1 3 Average Overweight (x) 1 | . . . . 1 1 1 1 1 1 1 1 Largest Inventory Capacity 20 | 8 8 15 15 20 20 20 20 20 20 20 20 Average Capacity 17 | 7 8 9 15 18 20 20 20 20 20 20 19 Most Carried 20 | 3 8 15 15 17 20 20 20 20 20 15 18 Average Carried 14 | 1 6 8 8 12 18 19 19 19 14 13 14 Final Capacity 20 | 8 8 15 15 20 20 20 20 20 20 20 5 Final Carried 20 | 3 8 15 12 17 20 20 20 20 15 15 5 Class Distribution -------------------- 34% | Scavenger-Tank 24% | Bothacker-Tank 9% | Scavenger-Mutant 8% | Bothacker-Mutant 6% | Skirmisher 5% | Mutant 5% | Botlord-Gunner 3% | Botlord-Tank Dominant Class ---------------- Mutant | -10/Materials Skirmisher | -9/Materials Scavenger-Tank | -8/Materials Scavenger-Tank | -8/Garrison Scavenger-Tank | -8/Materials Scavenger-Tank | -7/Factory Scavenger-Tank | -7/Garrison Bothacker-Tank | -7/Factory Bothacker-Tank | -7/Garrison Botlord-Tank | -6/Factory Botlord-Gunner | -6/Garrison Resources | -11 -10 -9 -8 -8 -8 -7 -7 -7 -7 -6 -6 ----------- Run | Yrd Mat Mat Mat Gar Mat Fac Gar Fac Gar Fac Gar Matter Collected 2556 | 138 62 73 519 310 113 112 214 37 559 . 419 Remotely . | . . . . . . . . . . . . Salvage Created 5540 | 28 119 477 1134 1044 51 96 98 82 1642 . 769 Parts 244 | 2 10 26 66 45 2 3 2 1 58 . 29 Haulers Intercepted 1 | . . 1 . . . . . . . . . Recyclers Shooed 2 | . . . 2 . . . . . . . . Parts Field Recycled . | . . . . . . . . . . . . Retrieved Matter . | . . . . . . . . . . . . Parts Self-Destructed . | . . . . . . . . . . . . Prevented . | . . . . . . . . . . . . Parts Restored . | . . . . . . . . . . . . Kills | -11 -10 -9 -8 -8 -8 -7 -7 -7 -7 -6 -6 ------- Run | Yrd Mat Mat Mat Gar Mat Fac Gar Fac Gar Fac Gar Combat Hostiles Destroyed 102 | . 3 9 28 23 1 2 1 1 25 . 9 Melee 5 | . . . 2 . . . . . . . 3 Guns 66 | . 3 8 18 13 . 2 . . 16 . 6 Cannons 8 | . . . . 3 1 . 1 . 3 . . AOE 18 | . . 1 7 7 . . . . 3 . . Classes Destroyed 16 | 1 3 4 5 2 . . . . 1 . . Worker 4 | . 1 1 2 . . . . . . . . Builder 3 | . . . 3 . . . . . . . . Tunneler 1 | 1 . . . . . . . . . . . Hauler 1 | . . 1 . . . . . . . . . Recycler 1 | . . . 1 . . . . . . . . Mechanic 1 | . . . 1 . . . . . . . . Operator 2 | . . 1 . . . . . 1 . . . Watcher 5 | . 2 . 1 . . 1 . 1 . . . Swarmer 18 | . 3 . 9 3 . . . . . . 3 Cutter 2 | . . . . . . . . . 2 . . Grunt 49 | . . 7 11 13 . . . . 14 . 4 Duelist 5 | . . . . 1 . . . . 3 . 1 Sentry 15 | . . 2 6 3 1 1 . . 2 . . Hunter 4 | . . . 1 1 . . . . 2 . . Programmer 8 | . . . . 2 . 1 1 1 2 . 1 Heavy 1 | . . . 1 . . . . . . . . Best Kill Streak 10 | 1 3 6 10 5 1 1 1 1 5 . 3 Combat Bots Only 6 | . 3 3 6 5 1 1 1 1 5 . 3 Max Kills in Single Turn 3 | 1 1 1 3 3 1 1 1 1 2 . 2 Gunslinging 1 | . . . . . . . . . 1 . 1 Exploded 3 | . . 1 3 2 . . . . 1 . . Melee 1 | . . . 1 . . . . . . . 1 Uniques/NPCs Destroyed . | . . . . . . . . . . . . Combat | -11 -10 -9 -8 -8 -8 -7 -7 -7 -7 -6 -6 -------- Run | Yrd Mat Mat Mat Gar Mat Fac Gar Fac Gar Fac Gar Hostile Shots Fired 975 | . 13 42 167 136 25 43 12 8 210 . 319 Missed 285 | . 2 7 55 34 9 18 3 2 50 . 105 Hits 690 | . 11 35 112 102 16 25 9 6 160 . 214 Melee 29 | . . . . . . . . . 16 . 13 Projectile 661 | . 11 35 112 102 16 25 9 6 144 . 201 AOE 1 | . . . . . . . . . 1 . . Critical Strikes 42 | . . . 9 6 1 . 2 1 14 . 9 Actively Blocked 1 | . . . 1 . . . . . . . . Part Disruptions 5 | . . . . 2 . . 1 1 1 . . Damage Taken 9907 | . 80 450 1874 1577 258 218 171 90 2359 . 2830 Core 1790 | . 14 74 265 163 28 25 15 15 339 . 852 Absorbed by Shields 216 | . . . . . . . . . 216 . . Redirected to Shielding 160 | . . . 47 48 10 8 6 . . . 41 Core Remaining (%) 67 | 100 94 81 . . 17 . . . 43 . . Volleys Fired 317 | 2 10 27 81 61 3 14 9 11 73 . 26 Largest 3 | 2 2 3 3 3 3 3 3 3 3 . 3 Hottest 240 | 70 70 110 195 185 185 195 209 209 240 . 225 Shots Fired 774 | 4 20 80 200 147 9 30 28 34 168 . 54 Gun 611 | 4 20 80 161 114 6 14 11 23 134 . 44 Cannon 113 | . . . 30 25 3 11 17 11 16 . . Launcher 23 | . . . 9 8 . . . . 6 . . Special 27 | . . . . . . 5 . . 12 . 10 Kinetic 113 | 2 10 27 32 10 3 7 8 . 14 . . Thermal 578 | 2 10 27 152 129 6 18 20 34 136 . 44 Explosive 17 | . . . 9 8 . . . . . . . Electromagnetic 39 | . . 26 7 . . . . . 6 . . Robot Hit Streak 14 | 3 6 9 14 9 4 8 6 7 13 . 7 Robot Miss Streak 6 | . 2 6 5 2 2 3 6 6 5 . 5 Penetration Max . | . . . . . . . . . . . . Secondary Targets 10 | . 1 4 1 1 . . . . 2 . 1 Max Gunslinging Chain 1 | . 1 1 1 1 . . . . 1 . 1 Autonomous 12 | . . . . . . . . . . . 12 Shots Hit Robots 564 | 3 9 52 127 94 3 21 10 19 161 . 65 Core Hits 298 | 1 6 25 67 57 1 8 3 4 92 . 34 Critical Kills . | . . . . . . . . . . . . Critical Parts Destroyed 1 | . . . 1 . . . . . . . . Critical Strikes 24 | 2 2 1 5 5 1 . 2 . 1 . 5 Burn 16 | 2 2 1 4 5 . . 1 . 1 . . Destroy 1 | . . . 1 . . . . . . . . Blast 2 | . . . . . 1 . 1 . . . . Sever 5 | . . . . . . . . . . . 5 Melee Attacks 114 | . . . 4 32 1 . 5 . 42 . 30 Impact . | . . . . . . . . . . . . Slashing 114 | . . . 4 32 1 . 5 . 42 . 30 Piercing . | . . . . . . . . . . . . Sneak Attacks . | . . . . . . . . . . . . Combat Hostiles . | . . . . . . . . . . . . Follow-up Attacks 1 | . . . . . . . . . . . 1 Damage Inflicted 13821 | 35 117 664 2560 2556 83 412 372 423 4688 . 1911 Guns 6984 | 35 117 600 1389 1057 57 230 50 280 2239 . 930 Cannons 1362 | . . . 281 278 26 182 122 143 330 . . Explosions 1765 | . . 64 767 554 . . . . 278 . 102 Melee 3709 | . . . 122 667 . . 200 . 1841 . 879 Ramming 1 | . . . 1 . . . . . . . . Kinetic 982 | 10 19 146 160 174 26 151 60 . 236 . . Thermal 7259 | 25 98 313 1546 1161 57 261 112 423 2333 . 930 Explosive 1317 | . . . 661 554 . . . . . . 102 Electromagnetic 553 | . . 205 70 . . . . . 278 . . Impact . | . . . . . . . . . . . . Slashing 3709 | . . . 122 667 . . 200 . 1841 . 879 Piercing . | . . . . . . . . . . . . Highest Corruption 4 | . . . . 1 1 1 2 2 3 . 4 Average Corruption 2 | . . . . 1 1 1 1 1 2 . 3 Corruption Purged 2 | . . . . . . . . 2 . . . Corruption Blocked . | . . . . . . . . . . . . Effects 50 | . . . . . 3 . 11 4 29 . 3 Message Errors 15 | . . . . . . . 2 2 11 . . Matter Fused 8 | . . . . . . . 2 1 3 . 2 Heat Flow Errors 9 | . . . . . 2 . 2 . 4 . 1 Energy Discharges 5 | . . . . . 1 . 1 . 3 . . Data Loss (minor) 4 | . . . . . . . 1 . 3 . . Data Loss (major) 2 | . . . . . . . 1 . 1 . . Misfires 6 | . . . . . . . 2 1 3 . . Weapon Failures 1 | . . . . . . . . . 1 . . Overload Shots . | . . . . . . . . . . . . Overflow Damage 204 | . . 9 8 4 . 15 . 13 113 . 42 Projectiles 39 | . . . . . . 15 . 13 11 . . Explosions 21 | . . 9 8 4 . . . . . . . Melee 144 | . . . . . . . . . 102 . 42 Knockbacks 6 | . . . . 4 . 1 1 . . . . Impact . | . . . . . . . . . . . . Kinetic 6 | . . . . 4 . 1 1 . . . . Secondary . | . . . . . . . . . . . . Self-Inflicted Damage 288 | . . 31 35 63 . . . . 19 . 140 Shots 9 | . . 1 1 4 . . . . 2 . 1 Rammed 1 | . . . 1 . . . . . . . . Targets Rammed 1 | . . . 1 . . . . . . . . Kicked . | . . . . . . . . . . . . Crushed . | . . . . . . . . . . . . Highest Temperature 532 | 40 110 150 532 387 78 144 245 171 392 . 234 Average Temperature 107 | 20 43 52 136 125 41 56 47 76 118 . 65 Received Heat Transfer 3022 | . . 186 747 567 144 48 18 . 622 . 690 Effects 19 | . . . 11 1 . . . . 7 . . Shutdowns 6 | . . . 6 . . . . . . . . Energy Bleed 3 | . . . 2 . . . . . 1 . . Interference 6 | . . . . 1 . . . . 5 . . Matter Decay 2 | . . . 2 . . . . . . . . Short Circuit 1 | . . . 1 . . . . . . . . Damage (minor) 1 | . . . . . . . . . 1 . . Siege Activations . | . . . . . . . . . . . . Martial Activations . | . . . . . . . . . . . . Shielding Activations . | . . . . . . . . . . . . Robots Disrupted . | . . . . . . . . . . . . Combat Hostiles . | . . . . . . . . . . . . Robots Corrupted . | . . . . . . . . . . . . Combat Hostiles . | . . . . . . . . . . . . Parts Fried . | . . . . . . . . . . . . Impact Corruptions . | . . . . . . . . . . . . Robots Melted 5 | . . . 1 . . . . 1 3 . . Combat Hostiles 5 | . . . 1 . . . . 1 3 . . Parts Melted 43 | . . 3 11 5 . 2 3 3 15 . 1 Heat Transferred 16500 | 222 444 914 3924 3048 125 523 259 703 4941 . 1397 Parts Sabotaged . | . . . . . . . . . . . . Parts Stolen . | . . . . . . . . . . . . Parts Stripped . | . . . . . . . . . . . . Power Chain Reactions 3 | . . 2 1 . . . . . . . . Alert | -11 -10 -9 -8 -8 -8 -7 -7 -7 -7 -6 -6 ------- Run | Yrd Mat Mat Mat Gar Mat Fac Gar Fac Gar Fac Gar Maximum Alert Level 3 | . . . 2 3 1 . 2 1 3 2 2 Low Security (%) 39 | 100 100 100 42 . 90 100 49 91 25 . . Level 1 23 | . . . 54 23 9 . 35 8 30 . 21 Level 2 34 | . . . 2 75 . . 14 . 31 100 78 Level 3 2 | . . . . . . . . . 11 . . Level 4 . | . . . . . . . . . . . . Level 5 . | . . . . . . . . . . . . High Security . | . . . . . . . . . . . . Max Security . | . . . . . . . . . . . . Peak Influence 824 | . 60 83 406 800 390 30 420 220 824 432 617 Initial 432 | . . 20 27 258 390 7 . 220 . 432 295 Average 303 | . 5 37 227 498 75 4 206 81 391 428 503 Influence Increases 4074 | 5 89 247 875 762 46 67 430 42 1014 . 497 Destroy 0b10 Robot/C 2140 | . 60 180 560 480 20 40 20 20 500 . 260 Destroy 0b10 Robot/NC 145 | 5 15 15 40 10 . 5 5 10 25 . 15 Destroy Leader 332 | . 14 42 142 20 10 22 . 12 50 . 20 Allied During Kill 28 | . . . . 6 . . . . . . 22 Successful Hack 51 | . . . . . . . 30 . 14 . 7 Disable Machine 15 | . . . . . . . 15 . . . . Anti-Garrison Action 950 | . . . . 200 . . 350 . 300 . 100 Destroy Structure 158 | . . 10 28 46 1 . 10 . 20 . 43 Partial Spotted 15 | . . . 15 . . . . . . . . Lose Combat Pursuer 240 | . . . 90 . 15 . . . 105 . 30 Influence Decreases 3602 | 5 39 230 544 360 830 83 10 462 190 402 447 Entered New Map 1348 | . . 30 40 140 410 9 . 200 . 392 127 Time Decay 1024 | 5 39 190 324 . 120 74 . 262 . 10 . Lost Part 770 | . . 10 180 160 . . 10 . 190 . 220 Lost Ally 160 | . . . . 60 . . . . . . 100 Purge Threat 300 | . . . . . 300 . . . . . . Squads Dispatched 10 | . . 2 5 . 1 1 . 1 . . . Investigation 1 | . . 1 . . . . . . . . . Extermination 2 | . . . . . . 1 . 1 . . . Reinforcement 4 | . . 1 2 . 1 . . . . . . Assault . | . . . . . . . . . . . . Garrison 3 | . . . 3 . . . . . . . . Intercept . | . . . . . . . . . . . . Searches Triggered . | . . . . . . . . . . . . Construction Impeded 1 | . . . 1 . . . . . . . . Haulers Reinforced . | . . . . . . . . . . . . Active Scanning Responses . | . . . . . . . . . . . . Cargo Convoy Interrupts . | . . . . . . . . . . . . Stealth | -11 -10 -9 -8 -8 -8 -7 -7 -7 -7 -6 -6 --------- Run | Yrd Mat Mat Mat Gar Mat Fac Gar Fac Gar Fac Gar Distress Signals 3 | . . 1 1 . 1 . . . . . . Communications Jammed . | . . . . . . . . . . . . Distress Signals . | . . . . . . . . . . . . Times Spotted 154 | . 5 13 40 23 9 2 6 4 34 . 18 Peak Tracking Total 6 | . 3 4 6 5 6 1 2 1 6 . 5 Tactical Retreats 11 | . . . 4 . 1 . . . 4 . 2 Traps | -11 -10 -9 -8 -8 -8 -7 -7 -7 -7 -6 -6 ------- Run | Yrd Mat Mat Mat Gar Mat Fac Gar Fac Gar Fac Gar Traps Triggered 26 | . . 1 2 10 . 1 . 1 7 . 4 Indirectly . | . . . . . . . . . . . . Trap Hack Attempts . | . . . . . . . . . . . . Triggered . | . . . . . . . . . . . . Disarmed . | . . . . . . . . . . . . Reprogrammed . | . . . . . . . . . . . . Reused . | . . . . . . . . . . . . Traps Extracted . | . . . . . . . . . . . . Installed . | . . . . . . . . . . . . Triggered . | . . . . . . . . . . . . Machines | -11 -10 -9 -8 -8 -8 -7 -7 -7 -7 -6 -6 ---------- Run | Yrd Mat Mat Mat Gar Mat Fac Gar Fac Gar Fac Gar Machines Disabled 9 | . . . . . . . 4 . 2 . 3 Max in Single Turn 2 | . . . . . . . 1 . 1 . 2 Garrison Access 1 | . . . . . 1 . . . . . . Garrison Relay 6 | . . . . . . . 3 . 2 . 1 Phase Generator 1 | . . . . . . . . . . . 1 Machines Repaired . | . . . . . . . . . . . . Machines Dismantled . | . . . . . . . . . . . . Machines Sabotaged . | . . . . . . . . . . . . Overloaded Fab Kills . | . . . . . . . . . . . . Hacking | -11 -10 -9 -8 -8 -8 -7 -7 -7 -7 -6 -6 --------- Run | Yrd Mat Mat Mat Gar Mat Fac Gar Fac Gar Fac Gar Machines Accessed 20 | . . 1 3 2 3 1 3 2 2 1 2 Terminals 14 | . . 1 2 2 2 . 3 . 2 . 2 Fabricators . | . . . . . . . . . . . . Repair Stations . | . . . . . . . . . . . . Recycling Units 1 | . . . . . . . . 1 . . . Scanalyzers . | . . . . . . . . . . . . Garrison Access 5 | . . . 1 . 1 1 . 1 . 1 . Total Hacks 30 | . . 1 4 2 5 2 5 2 4 2 3 Successful 17 | . . 1 3 . 4 2 2 1 1 2 1 Failed 13 | . . . 1 2 1 . 3 1 3 . 2 Catastrophic 5 | . . . 1 1 1 . . . 2 . . Database Lockouts . | . . . . . . . . . . . . Manual 4 | . . . 2 . 2 . . . . . . Terminals 21 | . . 1 3 2 3 . 5 . 4 . 3 Fabricators . | . . . . . . . . . . . . Repair Stations . | . . . . . . . . . . . . Recycling Units 1 | . . . . . . . . 1 . . . Scanalyzers . | . . . . . . . . . . . . Garrison Access 8 | . . . 1 . 2 2 . 1 . 2 . Terminal Hacks 9 | . . 1 2 . 2 . 2 . 1 . 1 Open Door 1 | . . . . . . . . . . . 1 Emergency Access Points 1 | . . . 1 . . . . . . . . Alert Level 1 | . . . 1 . . . . . . . . Unreport Threat 2 | . . . . . 2 . . . . . . Zone Layout 1 | . . 1 . . . . . . . . . Garrison Registry 2 | . . . . . . . 1 . 1 . . Security Stations 1 | . . . . . . . 1 . . . . Fabricator Hacks . | . . . . . . . . . . . . Repair Station Hacks . | . . . . . . . . . . . . Recycling Unit Hacks . | . . . . . . . . . . . . Scanalyzer . | . . . . . . . . . . . . Garrison Access Hacks 8 | . . . 1 . 2 2 . 1 . 2 . Unlock Access 4 | . . . 1 . . 1 . 1 . 1 . Seal Access 1 | . . . . . 1 . . . . . . Coupler Status 3 | . . . . . 1 1 . . . 1 . Unauthorized Hacks . | . . . . . . . . . . . . Terminals . | . . . . . . . . . . . . Fabricators . | . . . . . . . . . . . . Repair Stations . | . . . . . . . . . . . . Recycling Units . | . . . . . . . . . . . . Scanalyzers . | . . . . . . . . . . . . Garrison Access . | . . . . . . . . . . . . Data Cores Recovered 1 | . . . . . . . . 1 . . . Used . | . . . . . . . . . . . . Hacking Detections 14 | . . 1 1 2 2 . 2 2 2 1 1 Full Trace Events . | . . . . . . . . . . . . Feedback Events . | . . . . . . . . . . . . Feedback Blocked . | . . . . . . . . . . . . Robot Schematics Acquired . | . . . . . . . . . . . . Robots Built . | . . . . . . . . . . . . Authchips . | . . . . . . . . . . . . Time . | . . . . . . . . . . . . Total Robot Build Rating . | . . . . . . . . . . . . Part Schematics Acquired . | . . . . . . . . . . . . Parts Built . | . . . . . . . . . . . . Authchips . | . . . . . . . . . . . . Time . | . . . . . . . . . . . . Total Part Build Rating . | . . . . . . . . . . . . Part Studies Acquired . | . . . . . . . . . . . . Parts Repaired . | . . . . . . . . . . . . Time . | . . . . . . . . . . . . Parts Recycled . | . . . . . . . . . . . . Recycled Matter . | . . . . . . . . . . . . Retrieved Matter . | . . . . . . . . . . . . Retrieved Components . | . . . . . . . . . . . . Parts Scanalyzed . | . . . . . . . . . . . . Part Schematics Acquired . | . . . . . . . . . . . . Parts Damaged . | . . . . . . . . . . . . Bothacking | -11 -10 -9 -8 -8 -8 -7 -7 -7 -7 -6 -6 ------------ Run | Yrd Mat Mat Mat Gar Mat Fac Gar Fac Gar Fac Gar Used RIF Installer 5 | . . . . 1 . . 1 . 2 . 1 Code Merge 1 | . . . . . . . . . . . 1 Command Fork 1 | . . . . . . . 1 . . . . Autooverride 1 | . . . . . . . . . 1 . . Autoassimilate 1 | . . . . . . . . . 1 . . Robots Hacked 9 | . . . . . . 1 . . 2 . 6 Non-combat 1 | . . . . . . 1 . . . . . Combat 8 | . . . . . . . . . 2 . 6 Autooverrided 1 | . . . . . . . . . . . 1 Autoassimilated 1 | . . . . . . . . . . . 1 Robot Hacks Applied 10 | . . . . . . 3 . . 2 . 5 parse_system 6 | . . . . . . 2 . . 2 . 2 generate_echo 1 | . . . . . . 1 . . . . . broadcast_data 1 | . . . . . . . . . . . 1 wipe_record 1 | . . . . . . . . . . . 1 overwrite_iff 1 | . . . . . . . . . . . 1 Relay Couplers Released 30 | . . . . . 3 . 17 . 6 . 4 Machine Destruction 27 | . . . . . 3 . 14 . 6 . 4 Programmers 3 | . . . . . . . 3 . . . . Attached 8 | . . . . . . 1 1 . 1 2 3 Merged Code Value 3 | . . . . . . . . . . . 3 Fabnet Peak Effective % . | . . . . . . . . . . . . Robots Rewired 6 | . . . . 3 . . . . . . 3 Allies Hacked . | . . . . . . . . . . . . Hacks Repelled . | . . . . . . . . . . . . Allies | -11 -10 -9 -8 -8 -8 -7 -7 -7 -7 -6 -6 -------- Run | Yrd Mat Mat Mat Gar Mat Fac Gar Fac Gar Fac Gar Total Allies 9 | . . . . 3 . . . . . . 6 Largest Group 4 | . . . . 3 . . . . . . 4 Highest-Rated Group 146 | . . . . 48 . . . . . . 146 Highest-Rated Ally 51 | . . . . 16 . . . . . . 51 Total Orders . | . . . . . . . . . . . . Ally Attacks 37 | . . . . 17 . . . . . . 20 Total Damage 769 | . . . . 200 . . . . . . 569 Kills 5 | . . . . 1 . . . . . . 4 Allies Corrupted . | . . . . . . . . . . . . Allies Melted . | . . . . . . . . . . . . Intel | -11 -10 -9 -8 -8 -8 -7 -7 -7 -7 -6 -6 ------- Run | Yrd Mat Mat Mat Gar Mat Fac Gar Fac Gar Fac Gar Active Infowar (turns) 933 | 27 368 481 57 . . . . . . . . Terrain 933 | 27 368 481 57 . . . . . . . . Robot Analysis Total . | . . . . . . . . . . . . Derelict Logs Recovered . | . . . . . . . . . . . . Drone Launches . | . . . . . . . . . . . . Drone Recoveries . | . . . . . . . . . . . . Exploration | -11 -10 -9 -8 -8 -8 -7 -7 -7 -7 -6 -6 ------------- Run | Yrd Mat Mat Mat Gar Mat Fac Gar Fac Gar Fac Gar Turns Passed 8288 | 90 368 481 739 1804 241 373 731 677 1800 29 955 Spaces Moved 5054 | 45 210 238 378 1172 169 271 581 521 860 22 587 Core 5 | 2 . . . . . . . . 3 . . Treads 548 | 43 210 238 57 . . . . . . . . Legs 387 | . . . . . . . . . 358 . 29 Wheels 4114 | . . . 321 1172 169 271 581 521 499 22 558 Hover . | . . . . . . . . . . . . Flight . | . . . . . . . . . . . . Fastest Speed 50 | 50 160 160 86 95 115 115 111 111 111 115 115 Average Speed 125 | 155 160 160 105 116 125 115 112 111 151 115 120 Slowest Speed 1150 | 160 160 160 160 140 130 115 115 111 1150 115 330 Overloaded Moves . | . . . . . . . . . . . . Propulsion Burnouts . | . . . . . . . . . . . . Robots Hopped . | . . . . . . . . . . . . Potential Cave-ins . | . . . . . . . . . . . . Cave-ins Triggered . | . . . . . . . . . . . . Exploration Rate (%) 35 | 4 52 32 41 69 31 10 60 14 61 1 51 Regions Visited 11 Branch Regions . Pre-discovered Areas . | . . . . . . . . . . . . Known Exits Taken 4 | . . . 1 . . 1 . 1 . 1 . Unknown Exits Taken 4 | 1 1 1 . . 1 . . . . . . Scrap Searched . | . . . . . . . . . . . . Spaces Dug 3 | . . . . 3 . . . . . . . Terrain Destroyed 152 | . . 9 34 26 1 . . . . . 82 Melee 3 | . . . . 3 . . . . . . . Projectile 1 | . . . . . 1 . . . . . . AOE 148 | . . 9 34 23 . . . . . . 82 Terrain Rammed . | . . . . . . . . . . . . Walls Destroyed . | . . . . . . . . . . . . Machines Disabled . | . . . . . . . . . . . . Actions | -11 -10 -9 -8 -8 -8 -7 -7 -7 -7 -6 -6 --------- Run | Yrd Mat Mat Mat Gar Mat Fac Gar Fac Gar Fac Gar Total 6157 | 59 224 284 551 1427 189 306 631 595 1127 25 739 Wait 165 | . . . 30 23 . 7 3 55 32 . 15 Move 5046 | 44 209 237 378 1171 168 271 580 521 859 21 587 Hop . | . . . . . . . . . . . . Pick Up 76 | 3 5 10 12 11 5 2 8 2 13 2 3 Fast Attach 69 | 8 . . 15 9 3 3 4 2 13 . 12 Attach 69 | . . 3 16 11 . 1 2 . 20 2 14 Detach 35 | 1 . . 6 5 2 . 5 1 5 . 10 Swap 59 | . . 4 3 9 2 5 4 . 24 . 8 Drop 53 | 1 . 3 5 3 5 3 11 3 11 . 8 Fire 317 | 2 10 27 81 61 3 14 9 11 73 . 26 Melee 113 | . . . 4 32 1 . 5 . 42 . 29 Ram 1 | . . . 1 . . . . . . . . Kick . | . . . . . . . . . . . . Crush . | . . . . . . . . . . . . Escape Stasis 131 | . . . . 72 . . . . 35 . 24 Rewire 23 | . . . . 20 . . . . . . 3 Trap . | . . . . . . . . . . . . Miscellaneous . | . . . . . . . . . . . . Route ------- -11/Scrapyard -10/Materials (discovered 2 exits: *Mat / [*Min]) -9/Materials (discovered 3 exits: *Mat x2 / [Min]) -8/Materials -8/Garrison (discovered 4 exits: *Mat x4) -8/Materials -7/Factory -7/Garrison (discovered 3 exits: *Fac x3) -7/Factory -7/Garrison (discovered 3 exits: *Fac x3) -6/Factory -6/Garrison (discovered 1 exit: [*Fac]) History --------- Turn | Location | Event 13 | -11/Scrapyard | Discovered new exit (range 16) 91 | -11/Scrapyard | Entered Materials 295 | -10/Materials | Discovered new exit (range 13) 301 | -10/Materials | Build established: Mutant 374 | -10/Materials | Discovered new exit (range 4) 459 | -10/Materials | Entered another Materials area 459 | -9/Materials | Evolved 2 slots: Utility x1, Weapon x1 505 | -9/Materials | Discovered new exit (range 9) 741 | -9/Materials | Discovered new exit (range 9) 760 | -9/Materials | Build established: Skirmisher 842 | -9/Materials | Discovered new exit (range 11) 940 | -9/Materials | Entered another Materials area 940 | -8/Materials | Evolved 2 slots: Power x1, Propulsion x1 1097 | -8/Materials | Garrison activated, responded to threat 1162 | -8/Materials | Lost 8 parts (2p3n1u2w) 1240 | -8/Materials | Lost 6 parts (1p2n1u2w) 1679 | -8/Materials | Identified exit to Garrison 1679 | -8/Materials | Entered Garrison 1689 | -8/Garrison | Build established: Scavenger-Tank 1921 | -8/Garrison | Triggered checkpoint 1956 | -8/Garrison | Triggered checkpoint 1997 | -8/Garrison | Lost 3 parts (1p1n1w) 2023 | -8/Garrison | Installed Relay Interface Framework 2079 | -8/Garrison | Discovered new exit (range 3) 2101 | -8/Garrison | Triggered checkpoint 2245 | -8/Garrison | Triggered checkpoint 2262 | -8/Garrison | Core integrity fell below 50% 2304 | -8/Garrison | Lost 5 parts (1p2n1u1w) 2418 | -8/Garrison | Discovered new exit (range 14) 2563 | -8/Garrison | Triggered checkpoint 2644 | -8/Garrison | Discovered new exit (range 10) 2673 | -8/Garrison | Triggered checkpoint 2723 | -8/Garrison | Triggered checkpoint 2769 | -8/Garrison | Discovered new exit (range 6) 2773 | -8/Garrison | Lost 3 parts (1p1u1w) 2897 | -8/Garrison | Triggered checkpoint 3362 | -8/Garrison | Lost 3 parts (2n1w) 3483 | -8/Garrison | Entered Materials 3704 | -8/Materials | Core integrity fell below 20% 3710 | -8/Materials | Discovered new exit (range 13) 3724 | -8/Materials | Entered Factory 3724 | -7/Factory | Evolved 2 slots: Propulsion x1, Utility x1 4097 | -7/Factory | Identified exit to Garrison 4097 | -7/Factory | Entered Garrison 4097 | -7/Garrison | Warlord forces raided the area 4121 | -7/Garrison | Triggered checkpoint 4189 | -7/Garrison | Triggered checkpoint 4205 | -7/Garrison | Triggered checkpoint 4235 | -7/Garrison | Triggered checkpoint 4239 | -7/Garrison | Triggered checkpoint 4267 | -7/Garrison | Triggered checkpoint 4295 | -7/Garrison | Expanded RIF knowledge: Command Fork 4320 | -7/Garrison | Discovered new exit (range 18) 4320 | -7/Garrison | Discovered new exit (range 64) 4320 | -7/Garrison | Discovered new exit (range 68) 4336 | -7/Garrison | Learned Factory security intel 4341 | -7/Garrison | Garrison Relay disabled 4506 | -7/Garrison | Warlord forces retreated 4573 | -7/Garrison | Garrison Relay disabled 4581 | -7/Garrison | Triggered checkpoint 4719 | -7/Garrison | Garrison Relay disabled 4828 | -7/Garrison | Entered Factory 5024 | -7/Factory | Build established: Bothacker-Tank 5505 | -7/Factory | Identified exit to Garrison 5505 | -7/Factory | Entered Garrison 5541 | -7/Garrison | Triggered checkpoint 5675 | -7/Garrison | Triggered checkpoint 5771 | -7/Garrison | Lost 6 parts (2p2n2u) 5842 | -7/Garrison | Lost 6 parts (2p1u3w) 5955 | -7/Garrison | Triggered checkpoint 6023 | -7/Garrison | Lost 6 parts (1p2n1u2w) 6299 | -7/Garrison | Discovered new exit (range 3) 6329 | -7/Garrison | Expanded RIF knowledge: Autooverride 6393 | -7/Garrison | Triggered checkpoint 6519 | -7/Garrison | Garrison Relay disabled 6777 | -7/Garrison | Triggered checkpoint 6804 | -7/Garrison | Core integrity fell below 50% 6892 | -7/Garrison | Garrison Relay disabled 6920 | -7/Garrison | Discovered new exit (range 73) 6920 | -7/Garrison | Discovered new exit (range 46) 6920 | -7/Garrison | Discovered new exit (range 25) 7289 | -7/Garrison | Expanded RIF knowledge: Autoassimilate 7305 | -7/Garrison | Entered Factory 7305 | -6/Factory | Evolved 2 slots: Utility x2 7327 | -6/Factory | Identified exit to Garrison 7334 | -6/Factory | Entered Garrison 7360 | -6/Garrison | Triggered checkpoint 7478 | -6/Garrison | Expanded RIF knowledge: Code Merge 7536 | -6/Garrison | Garrison Relay disabled 7590 | -6/Garrison | Build established: Botlord-Tank 7632 | -6/Garrison | Phase Generator disabled 7804 | -6/Garrison | Lost 4 allies 7968 | -6/Garrison | Triggered checkpoint 8023 | -6/Garrison | Discovered new exit (range 8) 8180 | -6/Garrison | Core integrity fell below 50% 8231 | -6/Garrison | Lost 14 parts (4p2n4u4w) 8279 | -6/Garrison | Core integrity fell below 20% 8289 | -6/Garrison | Destroyed by Y-54 Guardian with Flak Gun Last Messages --------------- 08237_ Acquired Shock Rifle. 08238_ Acquired 27 matter. 08244_ Acquired Hvy. Laser. 08250_ Acquired Blade Saw. 08251_ Acquired 10 matter. 08251_ Shock Rifle destroyed. 08254_ Acquired Core Shielding. 08256_ Carbon-fiber Leg destroyed. 08256_ Lgt. Angular Momentum Engine destroyed. 08259_ System corrupted: Matter fused (-6). 08261_ Acquired 16 matter. 08279_ System corrupted: Heat flow error (+115). 08280_ Axe destroyed. 08283_ Acquired 5 matter. 08285_ Arm. Leg destroyed. 08286_ Core Shielding destroyed. 08287_ Acquired 5 matter. 08288_ Acquired 7 matter. 08288_ Dropped Hcp. Storage Unit. 08288_ Dropped Proton Missile Launcher. Map ----- +----------------------------------------------------+ | ???????????????????????????????????????????????? | | ???????????????????????????????????????????????? | | ???????????????????????????????????????????????? | | ???????????????????????????????????????????????? | | ???????????????????????????????????????????????? | | ???????????????????????????????????????????????? | | ???????????????????????????????????????????????? | | ???????????????????????????????????????????????? | | ??????????????????????? ?????????????????????? | | ??????????????????????# ????????????????????? | | ??????????????????????# ????????????????????? | | ???????????? ????????# #????"???????????????? | | ???????????# #???????# #???? ???????????????? | | ??????????? #???????# #???? ???????????????? | | ???????????# #???????# #???? #??????????????? | | ???????????# #???????# #???? #??????????????? | | ???????????# #???????# #???? #??????????????? | | ???????????# #???????# #???? #??????????????? | | ???????????# #???????# #???# #??????????????? | | ???????????# #???????# #???# #??????????????? | | ???????????# #???????# #???# #??????????????? | | ???????????# #???????# #???# #??????????????? | | ???????????# #???????# #??## ###????????????? | | ?########### ######### ]#??# #????????????? | | ?# % /Y#### #### #??????? | | ?# Y[@% ! #??????? | | ?# !%[* %[ #?? | | ?# #####################################?????? | | ?# #?????????????????????????????????????????? | | ?# #?????????????????????????????????????????? | | ?# #?????????????????????????????????????????? | | ?# #?????????????????????????????????????????? | | ?# #?????????????????????????????????????????? | | ?# #?????????????????????????????????????????? | | ## #?????????????????????????????????????????? | | #?????????????????????????????????????????? | | ^ #?????????????????????????????????????????? | | #?????????????????????????????????????????? | | ## #?????????????????????????????????????????? | | ## #?????????????????????????????????????????? | | "?????????????????????????????????????????? | | "?????????????????????????????????????????? | | "?????????????????????????????????????????? | | "?????????????????????????????????????????? | | ## #???????????????? ????????????????????????? | | ## #???????????????? ????????????????????????? | | ######??????????? ????????????????????????? | | #??????????? ????????????????????????? | | #### #??????????? ????????????????????????? | | ## ##??# #??????????? ????????????????????????? | +----------------------------------------------------+ Best States ------------- Heat Dissipation 88 Coolant Potential 65 Energy Generation 29 Energy Capacity 455 Matter Stores 300 Matter Capacity 300 Sight Range 16 Terrain Scan Range 16 Terrain Scan Density 110 Armor Coverage 225 Core Shielding 30 Power Shielding 33 Evasion (%) 42 Recoil Reduction 3 Relay Coupler Types 4 Relay Coupler Value 108 Item Schematics ----------------- None Robot Schematics ------------------ None Fabricated ------------ Nothing Repaired ---------- Nothing Studied --------- None Alien Tech Used ----------------- None Achievements -------------- Drive-By Throw Away The Key Challenges ------------ None Game ------ Seed GrapheneGuidanceTether Manual? 0 Play Time 01:15:27 Cumulative 136.8 hours Start 2026.06.30 @ 19:26:46 End 2026.07.03 @ 03:25:49 Sessions 7 Manual Loads 0 Difficulty Rogue Special Mode None Game No. 258 Rogue 258 Adventurer 0 Explorer 0 Win Type - Total 0 Types 0/0/0/0/0/0/0/0/0/0 Lore% 37 Gallery% 47 Achievement% 29 Wizard Run 0 Options --------- Layout 1 ASCII 0 Keyboard 1 Movement Arrows Keybinds 0 Fullscreen 2 Font 24/Smallcaps Map View 50x35 Zoom Use 0% Tactical HUD 1 Map Filters NONE Filters NONE Steam 1 RUN: 367cf472-1e44-4795-9675-9af63c23336a